bitfinex/quotes_SOLUSD_20250611
["timestamp","ask_amount","ask_price","bid_price","bid_amount"]
[1749641016645,15.67089363,164.62,164.61,4.55387616]
[1749641016960,34.46270406,164.62,164.61,4.55387616]
[1749641017262,34.46270406,164.62,164.61,9.1039582]
[1749641017444,34.46270406,164.62,164.61,9.10382678]
[1749641017647,34.46270406,164.62,164.61,9.10384176]
[1749641017953,34.46270406,164.62,164.61,4.55376739]
[1749641018157,34.46270406,164.62,164.61,9.104024]
[1749641018361,34.46270406,164.62,164.61,4.55376739]
[1749641019246,34.46270406,164.62,164.61,9.10407051]
[1749641019970,34.46270406,164.62,164.61,4.55376739]
[1749641024958,0.14216157,164.56,164.51,5.69220924]
[1749641025258,10.39089363,164.55,164.52,10.23637685]
[1749641025461,10.39089363,164.55,164.53,4.54412637]
[1749641025769,10.39089363,164.55,164.54,4.5441263]
[1749641025952,10.39089363,164.55,164.54,4.54434378]
[1749641026157,10.39089363,164.55,164.51,5.69220924]
[1749641026556,10.39089363,164.54,164.51,5.69220924]
[1749641027471,10.39089363,164.54,164.52,5.69220924]
[1749641027965,10.39089363,164.55,164.52,5.69220924]
[1749641028274,10.39089363,164.54,164.52,5.69220924]
[1749641028458,26.0,164.56,164.51,16.08310287]
[1749641028641,36.39089363,164.57,164.52,16.08310287]
[1749641029262,10.39089363,164.56,164.52,5.69220924]
[1749641029864,10.39089363,164.57,164.52,5.69220924]
[1749641030071,10.39089363,164.57,164.52,16.08310287]
[1749641031173,10.39089363,164.57,164.52,5.69220924]
[1749641031871,10.39089363,164.56,164.52,5.69220924]
[1749641032776,10.39089363,164.56,164.54,5.69220924]
[1749641033770,16.46807381,164.55,164.52,5.69220924]
[1749641034857,16.46807381,164.55,164.53,5.69220924]
[1749641036379,16.46807381,164.55,164.51,5.69220924]
[1749641036677,10.39089363,164.54,164.51,5.69220924]
[1749641037060,10.39089363,164.54,164.48,26.0]
[1749641037061,10.39089363,164.53,164.5,5.69220924]
[1749641037258,41.33426781,164.56,164.5,5.69220924]
[1749641037259,10.39089363,164.52,164.5,5.69220924]
[1749641037775,10.39089363,164.51,164.49,5.69220924]
[1749641037979,10.39089363,164.5,164.48,7.58892412]
[1749641038150,10.39089363,164.49,164.48,5.69619589]
[1749641038347,10.39089363,164.49,164.47,5.69619589]
[1749641038776,21.27530241,164.51,164.47,5.69619589]
[1749641038976,21.27530241,164.51,164.45,5.69619589]
[1749641038977,10.39089363,164.48,164.45,5.69619589]
[1749641041286,16.47102982,164.47,164.45,5.69619589]
[1749641041952,16.47102982,164.47,164.44,5.69619589]
[1749641043966,10.39089363,164.46,164.45,5.69619589]
[1749641044164,16.47139952,164.46,164.43,5.69619589]
[1749641045080,6.08050589,164.46,164.43,5.69619589]
[1749641045281,6.08014859,164.47,164.44,10.39089363]
[1749641045489,6.08014859,164.47,164.45,5.69619589]
[1749641046064,6.08004003,164.48,164.45,5.69619589]
[1749641046270,6.08004003,164.48,164.44,10.39089363]
[1749641046271,6.08004003,164.48,164.46,5.69619589]
[1749641047883,6.07865783,164.51,164.46,16.08708952]
[1749641048101,16.46955146,164.51,164.47,5.69619589]
[1749641048964,6.07865783,164.51,164.47,16.08708952]
[1749641049289,6.07865783,164.51,164.49,16.08708952]
[1749641049880,11.37818844,164.53,164.49,16.08708952]
[1749641050186,11.37818844,164.53,164.5,5.69619589]
[1749641050487,10.39089363,164.51,164.47,5.69619589]
[1749641050692,10.39089363,164.49,164.47,5.69619589]
[1749641051197,6.07976653,164.48,164.47,5.69619589]
[1749641051578,16.47040608,164.49,164.47,5.69619589]
[1749641052189,6.07951245,164.49,164.47,5.69619589]
[1749641053791,10.39089363,164.5,164.45,7.58892412]
[1749641053792,6.07914773,164.5,164.48,5.69619589]
[1749641054707,6.07914773,164.5,164.47,5.69619589]
[1749641054864,16.47004136,164.5,164.47,5.69619589]
[1749641055500,6.07914773,164.5,164.47,5.69619589]
[1749641055999,6.07914773,164.5,164.48,5.69619589]
[1749641056796,16.47004136,164.5,164.48,5.69619589]
[1749641058390,6.07914773,164.5,164.48,5.69619589]
[1749641058598,16.47004136,164.5,164.46,5.69619589]
[1749641058763,16.47004136,164.5,164.47,5.69619589]
[1749641058764,31.66760974,164.5,164.47,5.69619589]
[1749641059206,31.66760974,164.5,164.48,5.69619589]
[1749641060112,31.66760974,164.5,164.46,5.69619589]
[1749641060578,57.66760974,164.5,164.46,5.69619589]
[1749641060782,6.07976653,164.48,164.46,5.69619589]
[1749641061492,6.07940743,164.49,164.47,5.69619589]
[1749641062367,6.07902735,164.5,164.47,5.69619589]
[1749641062770,6.07902735,164.5,164.48,5.69619589]
[1749641064285,6.07865783,164.51,164.48,5.69619589]
[1749641064688,16.46955146,164.51,164.48,5.69619589]
[1749641064898,10.39089363,164.5,164.48,5.69619589]
[1749641065905,21.27530241,164.51,164.48,5.69619589]
[1749641066107,10.39089363,164.5,164.48,5.69619589]
[1749641066404,6.07939692,164.49,164.47,5.69619589]
[1749641067885,10.39089363,164.51,164.47,5.69619589]
[1749641069104,26.0,164.52,164.47,5.69619589]
[1749641069298,10.39089363,164.51,164.47,5.69619589]
[1749641070211,10.39089363,164.51,164.48,4.55706191]
[1749641070393,10.39089363,164.51,164.49,4.55706138]
[1749641070590,10.39089363,164.51,164.5,4.55703968]
[1749641070792,15.91288362,164.56,164.5,14.94783511]
[1749641070989,5.3,164.59,164.54,10.39089363]
[1749641071188,0.14216157,164.58,164.55,4.55548477]
[1749641071405,15.69089363,164.59,164.56,4.55552091]
[1749641071611,5.3,164.59,164.57,4.5553777]
[1749641071804,5.3,164.59,164.55,10.39089363]
[1749641072107,5.3,164.59,164.57,10.39089363]
[1749641072313,5.3,164.59,164.58,4.55497564]
[1749641072722,5.3,164.59,164.58,9.10971143]
[1749641072894,5.3,164.59,164.58,4.55473602]
[1749641073493,5.3,164.59,164.58,4.55470738]
[1749641074728,5.3,164.59,164.58,4.55466322]
[1749641075191,5.3,164.59,164.58,4.55454374]
[1749641075393,5.3,164.59,164.58,14.94531059]
[1749641075702,5.3,164.59,164.58,14.94513966]
[1749641076208,5.3,164.59,164.58,14.94511793]
[1749641077004,5.3,164.59,164.58,4.55416091]
[1749641077331,5.3,164.59,164.58,14.94505454]
[1749641077511,5.3,164.59,164.58,10.39089363]
[1749641077690,5.3,164.59,164.58,14.94505454]
[1749641078799,22.11419363,164.66,164.58,14.94505454]
[1749641079026,22.11419363,164.66,164.6,10.39089363]
[1749641079206,22.11419363,164.66,164.61,14.94438897]
[1749641079406,22.11419363,164.66,164.62,4.55349497]
[1749641079631,22.11419363,164.66,164.63,4.55346923]
[1749641079840,17.79647993,164.66,164.64,4.55341951]
[1749641080022,17.9386415,164.66,164.65,4.55344955]
[1749641080197,17.9386415,164.66,164.65,4.55344901]
[1749641080397,17.9386415,164.66,164.59,10.39089363]
[1749641080621,17.9386415,164.66,164.6,4.55344901]
[1749641080925,17.9386415,164.66,164.61,4.5534667]
[1749641081126,17.9386415,164.66,164.59,10.39089363]
[1749641081127,10.39089363,164.64,164.62,4.55344504]
[1749641081304,10.39089363,164.64,164.59,10.39089363]
[1749641081504,10.39089363,164.64,164.6,4.55344719]
[1749641081697,10.39089363,164.64,164.61,4.55344665]
[1749641081914,10.39089363,164.64,164.62,4.55343861]
[1749641082113,10.39089363,164.64,164.63,4.5534592]
[1749641082428,10.39089363,164.64,164.63,4.55345866]
[1749641082612,10.39089363,164.64,164.59,10.39089363]
[1749641082806,10.39089363,164.63,164.6,4.55351332]
[1749641083012,16.46492899,164.64,164.59,10.39089363]
[1749641083225,16.46492899,164.64,164.6,4.55356709]
[1749641083403,16.46492899,164.64,164.61,4.55356709]
[1749641083604,16.46492899,164.64,164.62,4.55356589]
[1749641083805,16.46492899,164.64,164.59,10.39089363]
[1749641083806,16.60709056,164.64,164.63,4.55356589]
[1749641084009,42.60709056,164.64,164.63,4.55357172]
[1749641084211,42.60709056,164.64,164.63,4.55357869]
[1749641084408,42.60709056,164.64,164.58,10.39089363]
[1749641084622,10.39089363,164.63,164.59,4.55358137]
[1749641084902,10.39089363,164.63,164.6,4.55358137]
[1749641085102,10.39089363,164.63,164.58,10.39089363]
[1749641085315,10.39089363,164.63,164.59,4.55356079]
[1749641085316,16.46512284,164.63,164.59,4.55356079]
[1749641085512,16.46512284,164.63,164.58,10.39089363]
[1749641085699,16.46512284,164.63,164.59,4.55356079]
[1749641085900,10.39089363,164.63,164.58,10.39089363]
[1749641086132,10.39089363,164.63,164.59,4.55356025]
[1749641086433,42.60705054,164.64,164.6,4.55358191]
[1749641086603,42.60705054,164.64,164.61,4.5535803]
[1749641086803,42.60705054,164.64,164.62,4.55357976]
[1749641087025,42.60705054,164.64,164.63,4.55357922]
[1749641087234,42.60705054,164.64,164.58,10.39089363]
[1749641087442,10.39089363,164.62,164.59,4.55359499]
[1749641087610,10.39089363,164.62,164.6,4.55359553]
[1749641087935,10.39089363,164.62,164.61,4.55359499]
[1749641088125,10.39089363,164.62,164.57,10.39089363]
[1749641088306,10.39089363,164.62,164.58,4.55358298]
[1749641088622,10.39089363,164.62,164.59,4.55358134]
[1749641088823,10.39089363,164.62,164.6,4.5535808]
[1749641089121,10.39089363,164.62,164.57,10.39089363]
[1749641089624,16.46552507,164.62,164.58,4.55358188]
[1749641089835,10.39089363,164.62,164.57,10.39089363]
[1749641090127,16.46520547,164.63,164.58,14.94447497]
[1749641090308,16.46520547,164.63,164.59,4.5535808]
[1749641090506,16.46520547,164.63,164.6,4.5535808]
[1749641090715,16.46520547,164.63,164.61,4.55357973]
[1749641090904,16.46520547,164.63,164.62,4.55357919]
[1749641091104,16.46520547,164.63,164.62,4.55357865]
[1749641091300,16.46520547,164.63,164.58,10.39089363]
[1749641091537,10.39089363,164.62,164.59,4.5535808]
[1749641091703,10.39089363,164.62,164.55,1.6133]
[1749641091902,10.39089363,164.62,164.57,10.39089363]
[1749641092129,10.39089363,164.62,164.58,4.55358188]
[1749641092334,10.39089363,164.62,164.57,16.03643004]
[1749641092632,10.39089363,164.62,164.58,4.55358188]
[1749641092938,6.07459728,164.62,164.59,4.55358134]
[1749641093120,6.07434386,164.63,164.6,4.5535808]
[1749641093322,10.39089363,164.63,164.61,4.55357973]
[1749641093522,10.39089363,164.63,164.62,4.55354216]
[1749641093831,10.39089363,164.63,164.62,4.55354162]
[1749641094007,10.39089363,164.63,164.58,16.03643004]
[1749641094215,10.39089363,164.63,164.59,4.55354162]
[1749641094409,10.39089363,164.63,164.6,4.55352025]
[1749641094622,10.39089363,164.62,164.61,4.55351971]
[1749641094815,10.39089363,164.63,164.58,16.03643004]
[1749641095020,10.39089363,164.63,164.59,4.55352079]
[1749641095333,10.39089363,164.63,164.6,4.55352079]
[1749641095529,10.39089363,164.63,164.58,16.03643004]
[1749641095727,10.39089363,164.63,164.59,4.55352079]
[1749641095936,10.39089363,164.63,164.6,4.55352025]
[1749641096116,10.39089363,164.63,164.61,4.55352025]
[1749641096318,16.46516034,164.63,164.62,4.55351918]
[1749641096512,16.46516034,164.63,164.62,4.55351864]
[1749641096716,10.39089363,164.63,164.58,16.03643004]
[1749641097222,16.46525199,164.63,164.59,4.55352079]
[1749641097422,16.46525199,164.63,164.6,4.55352775]
[1749641097630,16.46525199,164.63,164.58,10.39089363]
[1749641097818,16.46525199,164.63,164.59,4.5535733]
[1749641098025,10.39089363,164.63,164.6,4.55357276]
[1749641098224,10.39089363,164.63,164.61,4.55357276]
[1749641098424,16.46524601,164.63,164.62,4.55357919]
[1749641098624,16.46524601,164.63,164.62,4.55357865]
[1749641098828,16.46524601,164.63,164.58,10.39089363]
[1749641099027,16.46524601,164.63,164.59,4.5535808]
[1749641099226,16.46524601,164.63,164.6,4.55358027]
[1749641099434,16.46524601,164.63,164.61,4.55357973]
[1749641099737,16.46524601,164.63,164.58,10.39089363]
[1749641099941,16.46524601,164.63,164.59,4.5535808]
[1749641100241,6.07435238,164.63,164.6,4.5536244]
[1749641100439,10.39089363,164.61,164.57,5.64553641]
[1749641100630,10.39089363,164.59,164.55,1.6133]
[1749641101016,10.39089363,164.59,164.55,7.25883641]
[1749641101215,0.14216157,164.62,164.55,17.64973004]
[1749641101440,10.39089363,164.63,164.58,10.39089363]
[1749641101746,42.46483785,164.64,164.59,14.94483592]
[1749641101918,42.46483785,164.64,164.6,4.55377329]
[1749641102118,42.46483785,164.64,164.59,10.39089363]
[1749641102423,10.39089363,164.65,164.6,14.94452418]
[1749641102621,11.7233,164.66,164.61,14.94421434]
[1749641102622,15.69089363,164.66,164.61,14.94421434]
[1749641102821,15.69089363,164.66,164.56,17.97981775]
[1749641102822,10.39089363,164.65,164.62,4.55325633]
[1749641103031,10.39089363,164.65,164.6,10.39089363]
[1749641103240,10.39089363,164.65,164.61,4.55332082]
[1749641103440,10.39089363,164.65,164.62,4.55331834]
[1749641103624,10.39089363,164.65,164.63,4.55328864]
[1749641103824,10.39089363,164.65,164.64,4.55328811]
[1749641104042,10.39089363,164.65,164.64,4.55328757]
[1749641104218,10.39089363,164.65,164.6,10.39089363]
[1749641104427,10.39089363,164.65,164.61,4.55328972]
[1749641104745,16.4644701,164.65,164.62,4.55328972]
[1749641104947,16.4644701,164.65,164.6,10.39089363]
[1749641105124,16.4644701,164.65,164.61,4.5533986]
[1749641105441,16.4644701,164.65,164.62,4.55339806]
[1749641105638,16.4644701,164.65,164.63,4.55333417]
[1749641105843,16.4644701,164.65,164.6,10.39089363]
[1749641106052,41.69089363,164.66,164.61,14.94418335]
[1749641106226,47.76405149,164.66,164.62,4.55328972]
[1749641106541,47.76405149,164.66,164.63,4.55311916]
[1749641106731,47.76405149,164.66,164.64,4.55294516]
[1749641106934,47.76405149,164.66,164.61,10.39089363]
[1749641107134,47.76405149,164.66,164.62,4.55294377]
[1749641107334,47.76405149,164.66,164.63,4.55294485]
[1749641107532,47.76405149,164.66,164.64,4.55294289]
[1749641107758,37.37315786,164.66,164.65,4.55294236]
[1749641107938,47.76405149,164.66,164.65,4.55294182]
[1749641108129,47.76405149,164.66,164.6,10.39089363]
[1749641108330,16.46447328,164.65,164.61,4.55294451]
[1749641108551,10.39089363,164.64,164.62,4.55294451]
[1749641108728,10.39089363,164.64,164.63,4.55294451]
[1749641108923,10.39089363,164.64,164.58,5.64553641]
[1749641109151,10.39089363,164.64,164.59,14.9442522]
[1749641109475,10.39089363,164.64,164.6,4.55335804]
[1749641109679,10.39089363,164.64,164.61,4.55335804]
[1749641109870,10.39089363,164.64,164.62,4.55328293]
[1749641110059,10.39089363,164.64,164.63,4.55328293]
[1749641110369,10.39089363,164.64,164.63,4.55328185]
[1749641110670,16.46447328,164.65,164.63,4.55328185]
[1749641110864,10.39089363,164.65,164.6,10.39089363]
[1749641111049,5.3,164.66,164.62,10.39089363]
[1749641111249,5.3,164.66,164.64,10.39089363]
[1749641111463,5.3,164.66,164.65,4.55268902]
[1749641111668,5.3,164.66,164.64,10.39089363]
[1749641111871,5.3,164.66,164.65,4.55246309]
[1749641112054,5.3,164.66,164.65,4.55237319]
[1749641112260,5.3,164.66,164.65,4.55210288]
[1749641112456,5.3,164.66,164.64,10.39089363]
[1749641112662,5.3,164.66,164.65,4.55209161]
[1749641112962,5.3,164.66,164.65,14.94294672]
[1749641113164,16.46227464,164.71,164.65,14.94294672]
[1749641113371,16.46227464,164.71,164.66,14.94294672]
[1749641113551,16.46227464,164.71,164.67,4.55204987]
[1749641113756,16.46227464,164.71,164.66,10.39089363]
[1749641114164,16.46227464,164.71,164.67,4.55206674]
[1749641114373,16.46227464,164.71,164.68,4.55206674]
[1749641114684,16.46227464,164.71,164.69,4.55208678]
[1749641114857,16.46227464,164.71,164.7,4.55208624]
[1749641115177,16.46227464,164.71,164.7,4.5520857]
[1749641115758,16.46227464,164.71,164.66,10.39089363]
[1749641115960,16.46227464,164.71,164.67,4.55201212]
[1749641116266,16.46227464,164.71,164.68,4.55201373]
[1749641116469,16.46227464,164.71,164.66,10.39089363]
[1749641116674,16.46227464,164.71,164.67,4.55200479]
[1749641116976,16.46227464,164.71,164.66,10.39089363]
[1749641117164,6.07138101,164.71,164.67,14.94277178]
[1749641117366,6.07138101,164.71,164.67,10.39089363]
[1749641117881,16.46227464,164.71,164.66,10.39089363]
[1749641119870,42.46183593,164.72,164.67,10.39089363]
[1749641120054,15.67089363,164.73,164.68,10.39089363]
[1749641120681,21.74148288,164.73,164.64,16.03643004]
[1749641120879,21.74148288,164.73,164.68,10.39089363]
[1749641121077,5.28,164.73,164.69,10.39089363]
[1749641122075,5.28,164.73,164.67,1.5002]
[1749641122266,5.28,164.73,164.69,10.39089363]
[1749641122469,11.35060482,164.73,164.69,10.39089363]
[1749641122668,11.35060482,164.73,164.67,1.5002]
[1749641122973,11.35060482,164.73,164.66,5.64553641]
[1749641122974,10.39089363,164.71,164.66,10.39089363]
[1749641123353,11.35060482,164.73,164.66,10.39089363]
[1749641123560,10.39089363,164.71,164.66,10.39089363]
[1749641124263,6.07164541,164.7,164.66,10.39089363]
[1749641125992,16.46231524,164.71,164.66,10.39089363]
[1749641127061,16.46231524,164.71,164.67,10.39089363]
[1749641128383,6.07142161,164.71,164.67,10.39089363]
[1749641129891,15.67089363,164.73,164.68,10.39089363]
[1749641130068,5.28,164.73,164.69,10.39089363]
[1749641130561,5.28,164.73,164.7,10.39089363]
[1749641132170,5.28,164.73,164.69,10.39089363]
[1749641132371,11.35056568,164.73,164.69,10.39089363]
[1749641133195,5.28,164.73,164.69,10.39089363]
[1749641133491,21.74147836,164.73,164.65,95.54553641]
[1749641133689,21.74147836,164.73,164.68,10.39089363]
[1749641135998,11.35058473,164.73,164.69,10.39089363]
[1749641138194,5.28,164.73,164.69,10.39089363]
[1749641138398,5.28,164.73,164.7,10.39089363]
[1749641138997,5.28,164.73,164.69,10.39089363]
[1749641139180,11.35054461,164.73,164.69,10.39089363]
[1749641139774,21.74143824,164.73,164.68,10.39089363]
[1749641140312,21.74143824,164.73,164.69,10.39089363]
[1749641141902,5.28,164.73,164.69,10.39089363]
[1749641142083,5.28,164.73,164.7,10.39089363]
[1749641142398,18.08479542,164.8,164.72,10.39089363]
[1749641142590,18.08479542,164.8,164.74,10.39089363]
[1749641142899,18.08479542,164.8,164.73,10.39089363]
[1749641142900,6.06906597,164.77,164.73,10.39089363]
[1749641143094,16.45964757,164.78,164.73,10.39089363]
[1749641145307,6.06875394,164.78,164.74,10.39089363]
[1749641145996,16.45964757,164.78,164.74,10.39089363]
[1749641146179,16.45964757,164.78,164.73,10.39089363]
[1749641147200,16.45964757,164.78,164.7,24.72]
[1749641147396,37.8331,164.81,164.75,10.39089363]
[1749641147594,10.39089363,164.88,164.8,10.39089363]
[1749641147595,6.06538484,164.87,164.8,10.39089363]
[1749641147802,5.3,164.89,164.86,10.39089363]
[1749641147984,5.3,164.89,164.87,10.39089363]
[1749641149079,5.3,164.89,164.84,5.65809193]
[1749641149402,15.69089363,164.89,164.84,10.39089363]
[1749641149706,21.75555123,164.89,164.84,10.39089363]
[1749641150200,10.39089363,164.87,164.83,5.65809193]
[1749641150402,5.3,164.89,164.86,10.39089363]
[1749641150587,5.3,164.89,164.87,10.39089363]
[1749641150990,5.3,164.89,164.88,10.39089363]
[1749641152293,11.36464916,164.89,164.88,10.39089363]
[1749641154607,11.36464916,164.89,164.85,5.65809193]
[1749641154802,11.36464916,164.89,164.87,10.39089363]
[1749641155507,21.75554279,164.89,164.85,16.04898556]
[1749641155704,11.36464916,164.89,164.86,10.17922597]
[1749641155906,11.36464916,164.89,164.87,4.52113404]
[1749641156098,11.36464916,164.89,164.88,4.52113404]
[1749641161696,21.75554279,164.89,164.88,4.52113404]
[1749641161909,11.50681073,164.89,164.88,4.52113404]
[1749641162091,21.75554279,164.89,164.88,4.52113404]
[1749641162315,11.36464916,164.89,164.88,4.52113404]
[1749641162708,21.75554279,164.89,164.88,4.52113404]
[1749641162913,21.89770436,164.89,164.88,4.52113404]
[1749641163217,66.54735322,164.89,164.88,4.52113404]
[1749641163820,26.0,164.85,164.83,5.68289086]
[1749641164009,10.39089363,164.84,164.8,5.68289086]
[1749641164322,10.39089363,164.82,164.81,5.68289086]
[1749641165035,10.39089363,164.82,164.78,7.58892412]
[1749641165036,6.06759298,164.81,164.8,5.68289086]
[1749641165203,16.45848661,164.81,164.78,5.68289086]
[1749641165520,10.39089363,164.8,164.78,5.68289086]
[1749641165702,6.06759298,164.81,164.78,5.68289086]
[1749641165703,10.39089363,164.79,164.78,5.68289086]
[1749641166021,10.39089363,164.79,164.74,11.38338619]
[1749641166022,10.39089363,164.79,164.77,5.68289086]
[1749641166326,10.39089363,164.79,164.74,7.58892412]
[1749641166327,10.39089363,164.79,164.76,5.68289086]
[1749641167018,6.06869765,164.78,164.74,10.39089363]
[1749641167604,16.45959128,164.78,164.74,10.39089363]
[1749641167796,16.45959128,164.78,164.73,10.39089363]
[1749641167797,10.39089363,164.77,164.73,10.39089363]
[1749641168024,10.39089363,164.76,164.72,5.68289086]
[1749641168413,10.39089363,164.77,164.72,10.39089363]
[1749641170226,21.23929548,164.79,164.72,10.39089363]
[1749641170431,10.39089363,164.77,164.72,10.39089363]
[1749641171029,10.39089363,164.77,164.72,5.68289086]
[1749641171326,10.39089363,164.76,164.71,16.07378449]
[1749641171517,10.39089363,164.77,164.72,10.39089363]
[1749641171700,10.39089363,164.78,164.73,10.39089363]
[1749641172434,6.06906597,164.77,164.73,10.39089363]
[1749641172935,6.06906597,164.77,164.72,10.39089363]
[1749641172936,16.4599596,164.77,164.72,10.39089363]
[1749641174101,10.39089363,164.76,164.72,10.39089363]
[1749641175118,16.46037861,164.76,164.72,10.39089363]
[1749641176730,6.06910415,164.77,164.72,10.39089363]
[1749641177039,10.39089363,164.77,164.73,10.39089363]
[1749641177243,16.45934443,164.79,164.74,10.39089363]
[1749641177411,11.34797964,164.8,164.76,10.39089363]
[1749641179507,5.28,164.8,164.77,10.39089363]
[1749641180709,5.28,164.8,164.73,24.74]
[1749641180908,5.28,164.8,164.77,10.39089363]
[1749641181731,5.28,164.8,164.73,24.74]
[1749641182130,5.28,164.8,164.77,10.39089363]
[1749641182537,11.34803808,164.8,164.77,10.39089363]
[1749641183137,11.34803808,164.8,164.76,10.39089363]
[1749641184138,5.28,164.8,164.76,10.39089363]
[1749641184537,5.28,164.8,164.77,10.39089363]
[1749641185118,11.34801261,164.8,164.76,10.39089363]
[1749641187944,11.34801261,164.8,164.77,10.39089363]
[1749641188544,10.39089363,164.78,164.64,10.39089363]
[1749641188737,10.39089363,164.76,164.71,10.39089363]
[1749641188928,10.39089363,164.78,164.73,10.39089363]
[1749641189747,18.10859127,164.81,164.76,10.39089363]
[1749641189950,6.06769764,164.81,164.78,10.39089363]
[1749641190118,6.06769764,164.81,164.77,10.39089363]
[1749641190324,10.39089363,164.79,164.73,1.5053]
[1749641190534,16.45957541,164.79,164.74,10.39089363]
[1749641190921,16.45957541,164.79,164.75,10.39089363]
[1749641191820,16.45957541,164.79,164.74,10.39089363]
[1749641193225,16.45957541,164.79,164.75,10.39089363]
[1749641193426,6.06868178,164.79,164.75,10.39089363]
[1749641195331,16.45957541,164.79,164.75,10.39089363]
[1749641195540,6.06868178,164.79,164.75,10.39089363]
[1749641196132,16.45957541,164.79,164.75,10.39089363]
[1749641197047,6.06868178,164.79,164.75,10.39089363]
[1749641197222,16.45957541,164.79,164.73,1.5053]
[1749641197546,16.45957541,164.79,164.75,10.39089363]
[1749641197740,6.06868178,164.79,164.75,10.39089363]
[1749641199325,21.7381674,164.82,164.77,10.39089363]
[1749641199862,15.67089363,164.82,164.78,10.39089363]
[1749641200027,16.45737859,164.85,164.8,10.39089363]
[1749641200949,10.39089363,164.84,164.76,24.72]
[1749641201152,10.39089363,164.84,164.79,10.39089363]
[1749641201664,10.39089363,164.84,164.8,4.54771339]
[1749641201953,10.39089363,164.84,164.81,10.23235513]
[1749641202135,10.39089363,164.84,164.82,4.54771339]
[1749641202336,10.39089363,164.84,164.83,4.54771339]
[1749641203059,16.59954391,164.84,164.83,4.54771339]
[1749641204427,16.59954391,164.84,164.8,5.68464174]
[1749641204630,16.45837406,164.82,164.8,5.68464174]
[1749641204861,10.39089363,164.81,164.8,5.68464174]
[1749641205047,10.39089363,164.81,164.79,5.68464174]
[1749641205349,6.06748043,164.82,164.78,5.68464174]
[1749641205350,10.39089363,164.8,164.78,5.68464174]
[1749641205751,10.39089363,164.8,164.77,5.68464174]
[1749641205952,10.39089363,164.81,164.77,5.68464174]
[1749641207140,6.06796116,164.8,164.77,5.68464174]
[1749641209174,10.39089363,164.8,164.77,5.68464174]
[1749641209541,10.39089363,164.8,164.75,10.39089363]
[1749641209542,10.39089363,164.81,164.76,16.07553537]
[1749641210756,6.06796116,164.8,164.76,16.07553537]
[1749641211258,16.45885479,164.8,164.77,5.68464174]
[1749641213964,6.06796116,164.8,164.77,5.68464174]
[1749641216462,11.34773192,164.81,164.79,10.39089363]
[1749641216647,11.34773192,164.81,164.79,16.07553537]
[1749641217856,6.06715009,164.83,164.8,10.39089363]
[1749641218043,6.06715009,164.83,164.8,16.0687215]
[1749641218349,6.06715009,164.83,164.79,5.67782787]
[1749641218554,6.06715009,164.83,164.8,10.39089363]
[1749641218759,6.06715009,164.83,164.79,16.0687215]
[1749641219052,10.39089363,164.82,164.79,5.67782787]
[1749641219259,10.39089363,164.82,164.78,5.67782787]
[1749641219561,6.06759298,164.81,164.78,16.0687215]
[1749641220658,6.06759298,164.81,164.77,16.0687215]
[1749641220862,31.62746907,164.81,164.77,16.0687215]
[1749641221368,6.06759298,164.81,164.77,16.0687215]
[1749641221665,6.06759298,164.81,164.78,10.39089363]
[1749641221863,6.06759298,164.81,164.77,5.67782787]
[1749641221864,6.06759298,164.81,164.77,16.0687215]
[1749641222067,10.39089363,164.8,164.77,5.67782787]
[1749641222940,6.06832938,164.79,164.77,5.67782787]
[1749641223145,6.06832938,164.79,164.77,10.39089363]
[1749641224156,21.23657544,164.81,164.77,10.39089363]
[1749641225469,26.51657544,164.81,164.77,10.39089363]
[1749641225986,36.90746907,164.81,164.76,16.06319506]
[1749641227183,6.06832938,164.79,164.76,16.06319506]
[1749641229260,6.06796116,164.8,164.76,16.06319506]
[1749641229583,6.06796116,164.8,164.77,10.39089363]
[1749641230586,11.34769757,164.81,164.77,10.39089363]
[1749641230781,6.06769757,164.81,164.79,10.39089363]
[1749641231779,6.06769757,164.81,164.78,16.06319506]
[1749641233059,6.06769757,164.81,164.78,10.39089363]
[1749641233263,6.06769757,164.81,164.78,16.06319506]
[1749641235685,10.39089363,164.8,164.77,5.67230143]
[1749641235985,10.39089363,164.79,164.75,5.67230143]
[1749641236374,16.45959128,164.78,164.75,5.67230143]
[1749641236574,16.45959128,164.78,164.74,5.67230143]
[1749641237588,6.06869765,164.78,164.74,16.06319506]
[1749641237794,6.06869765,164.78,164.75,5.67230143]
[1749641237973,6.06869765,164.78,164.74,16.06319506]
[1749641238992,16.45959128,164.78,164.74,5.67230143]
[1749641239294,31.63133542,164.78,164.74,5.67230143]
[1749641239467,10.39089363,164.77,164.74,5.67230143]
[1749641239785,10.39089363,164.77,164.74,5.6722704]
[1749641239990,10.39089363,164.77,164.71,26.0]
[1749641239991,10.39089363,164.76,164.73,5.6722704]
[1749641240174,10.39089363,164.74,164.73,5.6722704]
[1749641240489,10.39089363,164.74,164.71,5.6722704]
[1749641240793,10.39089363,164.73,164.68,10.39089363]
[1749641240970,15.67089363,164.73,164.68,10.39089363]
[1749641241171,6.0709082,164.72,164.68,10.39089363]
[1749641244494,16.46180183,164.72,164.68,10.39089363]